[Event "Late-Titled-Tuesday-Blitz-May-14-2024"]
[Site "Chess.com"]
[Date "2024.05.14"]
[Round "4"]
[White "EsmeraldasAnderson03"]
[Black "BardArtem"]
[Result "1/2-1/2"]
[WhiteElo "2520"]
[BlackElo "2743"]
[TimeControl "180+1"]
[EndTime "14:40:52 PDT"]
[Termination "Game drawn by stalemate"]

1. d4 {[%clk 0:03:00.9]} 1... d5 {[%clk 0:02:54.8]} 2. c4 {[%clk 0:03:00.6]}
2... e6 {[%clk 0:02:55.4]} 3. cxd5 {[%clk 0:03:01.1]} 3... exd5 {[%clk
0:02:55.7]} 4. Nc3 {[%clk 0:03:02]} 4... c6 {[%clk 0:02:56]} 5. Qc2 {[%clk
0:03:00.9]} 5... Bd6 {[%clk 0:02:56.3]} 6. Nf3 {[%clk 0:03:01.2]} 6... h6 {[%clk
0:02:55.4]} 7. Bd2 {[%clk 0:02:39.3]} 7... Nf6 {[%clk 0:02:55]} 8. Rc1 {[%clk
0:02:40]} 8... O-O {[%clk 0:02:54.5]} 9. e3 {[%clk 0:02:40.7]} 9... Re8 {[%clk
0:02:54.5]} 10. Be2 {[%clk 0:02:41]} 10... Bg4 {[%clk 0:02:54.1]} 11. O-O {[%clk
0:02:41]} 11... Nbd7 {[%clk 0:02:54.5]} 12. h3 {[%clk 0:02:41.3]} 12... Bh5
{[%clk 0:02:54.8]} 13. a3 {[%clk 0:02:40.1]} 13... Qe7 {[%clk 0:02:49.5]} 14. b4
{[%clk 0:02:39.3]} 14... a6 {[%clk 0:02:49.2]} 15. Na4 {[%clk 0:02:38.5]} 15...
Ne4 {[%clk 0:02:48.2]} 16. Nc5 {[%clk 0:02:37.1]} 16... Rab8 {[%clk 0:02:38.5]}
17. Nxd7 {[%clk 0:02:24.6]} 17... Qxd7 {[%clk 0:02:38.8]} 18. Ne5 {[%clk
0:02:25.1]} 18... Bxe5 {[%clk 0:02:29.8]} 19. Bxh5 {[%clk 0:02:24]} 19... Bc7
{[%clk 0:02:30.5]} 20. Bg4 {[%clk 0:02:10.1]} 20... Qd6 {[%clk 0:02:30.4]} 21.
f4 {[%clk 0:02:10.7]} 21... Re7 {[%clk 0:02:26.5]} 22. Be1 {[%clk 0:02:08.5]}
22... Rbe8 {[%clk 0:02:26.3]} 23. Bf5 {[%clk 0:02:05.5]} 23... Qf6 {[%clk
0:02:23.3]} 24. Bxe4 {[%clk 0:02:04.2]} 24... Rxe4 {[%clk 0:02:24.2]} 25. Bf2
{[%clk 0:02:04.8]} 25... g5 {[%clk 0:02:22.7]} 26. fxg5 {[%clk 0:01:59.4]} 26...
hxg5 {[%clk 0:02:23.6]} 27. Bg3 {[%clk 0:01:43.8]} 27... Qe7 {[%clk 0:02:05.6]}
28. Bxc7 {[%clk 0:01:31.5]} 28... Qxc7 {[%clk 0:02:06.5]} 29. Rf5 {[%clk
0:01:30.2]} 29... Qe7 {[%clk 0:02:02.4]} 30. Rcf1 {[%clk 0:01:24.9]} 30... Rxe3
{[%clk 0:01:51.8]} 31. Rxf7 {[%clk 0:01:24.3]} 31... Qxf7 {[%clk 0:01:52.7]} 32.
Rxf7 {[%clk 0:01:24.5]} 32... Kxf7 {[%clk 0:01:52.4]} 33. Qh7+ {[%clk
0:01:11.5]} 33... Ke6 {[%clk 0:01:50.5]} 34. Qxb7 {[%clk 0:01:11.7]} 34... Rc3
{[%clk 0:01:41.8]} 35. Qxa6 {[%clk 0:01:09.7]} 35... Kd6 {[%clk 0:01:36]} 36. b5
{[%clk 0:01:08.9]} 36... Rc1+ {[%clk 0:01:24.2]} 37. Kf2 {[%clk 0:01:02.8]}
37... Rc2+ {[%clk 0:01:22.9]} 38. Kf3 {[%clk 0:01:03.3]} 38... g4+ {[%clk
0:01:06.1]} 39. hxg4 {[%clk 0:01:02]} 39... Rc3+ {[%clk 0:00:32.4]} 40. Kf2
{[%clk 0:00:43.9]} 40... Rc2+ {[%clk 0:00:28.2]} 41. Kg3 {[%clk 0:00:42.5]}
41... Rc3+ {[%clk 0:00:25.5]} 42. Kh2 {[%clk 0:00:38.5]} 42... Rh8+ {[%clk
0:00:20.2]} 43. Kg1 {[%clk 0:00:39.2]} 43... Rc1+ {[%clk 0:00:20.8]} 44. Kf2
{[%clk 0:00:39.9]} 44... Rc2+ {[%clk 0:00:20.8]} 45. Ke3 {[%clk 0:00:39.2]}
45... Re8+ {[%clk 0:00:10.9]} 46. Kd3 {[%clk 0:00:39.5]} 46... Ree2 {[%clk
0:00:10.9]} 47. Qa5 {[%clk 0:00:40.1]} 47... Rxg2 {[%clk 0:00:05.5]} 48. Qd8+
{[%clk 0:00:34.8]} 48... Ke6 {[%clk 0:00:05]} 49. Qc8+ {[%clk 0:00:28.5]} 49...
Kd6 {[%clk 0:00:02.8]} 50. Qd8+ {[%clk 0:00:23.4]} 50... Ke6 {[%clk 0:00:03.4]}
51. Qe8+ {[%clk 0:00:16.6]} 51... Kd6 {[%clk 0:00:03.5]} 52. Qe5+ {[%clk
0:00:17]} 52... Kd7 {[%clk 0:00:03.3]} 53. bxc6+ {[%clk 0:00:17.9]} 53... Kxc6
{[%clk 0:00:03.3]} 54. Qe6+ {[%clk 0:00:18]} 54... Kc7 {[%clk 0:00:03.4]} 55.
Qxd5 {[%clk 0:00:18.6]} 55... Rcd2+ {[%clk 0:00:02.4]} 56. Ke4 {[%clk
0:00:18.6]} 56... Rxg4+ {[%clk 0:00:02.2]} 57. Kf5 {[%clk 0:00:18.9]} 57...
Rgxd4 {[%clk 0:00:02.6]} 58. Qc5+ {[%clk 0:00:18]} 58... Kb7 {[%clk 0:00:03.1]}
59. Qb5+ {[%clk 0:00:18.3]} 59... Kc7 {[%clk 0:00:03.2]} 60. Qc5+ {[%clk
0:00:18.8]} 60... Kd7 {[%clk 0:00:03.7]} 61. Qa7+ {[%clk 0:00:19]} 61... Kc6
{[%clk 0:00:03.7]} 62. Qa6+ {[%clk 0:00:18.9]} 62... Kd5 {[%clk 0:00:04.3]} 63.
Qb5+ {[%clk 0:00:18.8]} 63... Kd6 {[%clk 0:00:04.3]} 64. Qb6+ {[%clk 0:00:19.4]}
64... Ke7 {[%clk 0:00:04.5]} 65. Qb7+ {[%clk 0:00:18.7]} 65... Rd7 {[%clk
0:00:04.8]} 66. Qb4+ {[%clk 0:00:18.2]} 66... Ke8 {[%clk 0:00:03.6]} 67. a4
{[%clk 0:00:17.7]} 67... R2d5+ {[%clk 0:00:02.6]} 68. Ke6 {[%clk 0:00:17.1]}
68... R5d6+ {[%clk 0:00:02.1]} 69. Ke5 {[%clk 0:00:16.8]} 69... Rd5+ {[%clk
0:00:02.3]} 70. Ke6 {[%clk 0:00:16.9]} 70... R5d6+ {[%clk 0:00:01.8]} 71. Qxd6
{[%clk 0:00:17.6]} 71... Rxd6+ {[%clk 0:00:02.3]} 72. Kxd6 {[%clk 0:00:18.5]}
72... Kd8 {[%clk 0:00:03.2]} 73. Kc6 {[%clk 0:00:19.4]} 73... Kc8 {[%clk
0:00:04.1]} 74. Kb6 {[%clk 0:00:20.2]} 74... Kb8 {[%clk 0:00:05]} 75. Ka6 {[%clk
0:00:21.1]} 75... Ka8 {[%clk 0:00:05.9]} 76. Kb6 {[%clk 0:00:22]} 76... Kb8
{[%clk 0:00:06.8]} 77. a5 {[%clk 0:00:22.9]} 77... Ka8 {[%clk 0:00:07.7]} 78. a6
{[%clk 0:00:23.8]} 78... Kb8 {[%clk 0:00:08.6]} 79. a7+ {[%clk 0:00:24.7]} 79...
Ka8 {[%clk 0:00:09.5]} 80. Ka6 {[%clk 0:00:24.6]} 1/2-1/2

[Event "Late-Titled-Tuesday-Blitz-May-14-2024"]
[Site "Chess.com"]
[Date "2024.05.14"]
[Round "4"]
[White "chessdjw"]
[Black "Durarbayli"]
[Result "0-1"]
[WhiteElo "2767"]
[BlackElo "2958"]
[TimeControl "180+1"]
[EndTime "14:41:19 PDT"]
[Termination "Durarbayli won by resignation"]

1. d4 {[%clk 0:03:00.9]} 1... Nf6 {[%clk 0:02:59.2]} 2. c4 {[%clk 0:03:00.8]}
2... e6 {[%clk 0:02:59.6]} 3. Nf3 {[%clk 0:03:00.6]} 3... b6 {[%clk 0:02:59.8]}
4. g3 {[%clk 0:03:00.5]} 4... Bb7 {[%clk 0:03:00.3]} 5. Bg2 {[%clk 0:03:00.7]}
5... Be7 {[%clk 0:03:01]} 6. O-O {[%clk 0:03:01]} 6... O-O {[%clk 0:03:01.7]} 7.
Re1 {[%clk 0:03:00.4]} 7... Ne4 {[%clk 0:03:00.4]} 8. Nfd2 {[%clk 0:02:59.1]}
8... d5 {[%clk 0:03:00.2]} 9. cxd5 {[%clk 0:02:55.7]} 9... exd5 {[%clk
0:03:01.1]} 10. Nxe4 {[%clk 0:02:55.7]} 10... dxe4 {[%clk 0:03:02]} 11. Nc3
{[%clk 0:02:56.2]} 11... f5 {[%clk 0:03:01.4]} 12. Bf4 {[%clk 0:02:56.1]} 12...
Nc6 {[%clk 0:03:01.6]} 13. Nb5 {[%clk 0:02:28.7]} 13... g5 {[%clk 0:03:00.9]}
14. Bxc7 {[%clk 0:02:26.6]} 14... Qd5 {[%clk 0:03:00.9]} 15. Nc3 {[%clk
0:02:09.8]} 15... Qxd4 {[%clk 0:02:58.2]} 16. Qb3+ {[%clk 0:02:10]} 16... Rf7
{[%clk 0:02:30]} 17. Rad1 {[%clk 0:02:10.1]} 17... Qb4 {[%clk 0:02:29.6]} 18. g4
{[%clk 0:00:58.4]} 18... Qxb3 {[%clk 0:00:30.9]} 19. axb3 {[%clk 0:00:59.3]}
19... Rc8 {[%clk 0:00:31.1]} 20. Nd5 {[%clk 0:00:55.8]} 20... Bc5 {[%clk
0:00:20.6]} 21. gxf5 {[%clk 0:00:21.7]} 21... Rxf5 {[%clk 0:00:19.9]} 22. Bg3
{[%clk 0:00:14.8]} 22... Rcf8 {[%clk 0:00:16.6]} 23. e3 {[%clk 0:00:12.4]} 23...
Nb4 {[%clk 0:00:09.3]} 24. Nxb4 {[%clk 0:00:11.1]} 24... Bxb4 {[%clk 0:00:10.2]}
25. Re2 {[%clk 0:00:11.2]} 25... Bd5 {[%clk 0:00:09.7]} 26. Bh3 {[%clk
0:00:04.2]} 26... Bxb3 {[%clk 0:00:08.8]} 27. Bxf5 {[%clk 0:00:04.5]} 27... Bxd1
{[%clk 0:00:08.5]} 28. Be6+ {[%clk 0:00:03.9]} 28... Kg7 {[%clk 0:00:08.8]} 29.
Be5+ {[%clk 0:00:03.6]} 29... Kg6 {[%clk 0:00:09.1]} 30. Bd6 {[%clk 0:00:01.2]}
30... Rf6 {[%clk 0:00:06.6]} 31. Bxb4 {[%clk 0:00:00.9]} 31... Bxe2 {[%clk
0:00:07.2]} 32. Bd5 {[%clk 0:00:01.1]} 32... Bf3 {[%clk 0:00:07.4]} 33. Bc3
{[%clk 0:00:01.4]} 33... Rd6 {[%clk 0:00:07.8]} 34. Bb3 {[%clk 0:00:01.4]} 34...
g4 {[%clk 0:00:07.5]} 35. Kf1 {[%clk 0:00:01.8]} 35... h5 {[%clk 0:00:07.3]} 36.
Ke1 {[%clk 0:00:02.4]} 36... h4 {[%clk 0:00:07.6]} 37. Be5 {[%clk 0:00:02.6]}
37... Rd8 {[%clk 0:00:07.6]} 38. Bd4 {[%clk 0:00:02.4]} 38... Rd7 {[%clk
0:00:07.3]} 39. Kd2 {[%clk 0:00:02.9]} 39... Rd8 {[%clk 0:00:06.1]} 40. Be6
{[%clk 0:00:03.1]} 40... Rd6 {[%clk 0:00:06.1]} 41. Bc8 {[%clk 0:00:02.9]} 41...
b5 {[%clk 0:00:05.6]} 42. b4 {[%clk 0:00:02.9]} 42... a6 {[%clk 0:00:05.6]} 43.
Bb7 {[%clk 0:00:02.9]} 43... Kf7 {[%clk 0:00:04.1]} 44. Kc3 {[%clk 0:00:03.3]}
44... Rg6 {[%clk 0:00:03.4]} 45. Be5 {[%clk 0:00:03]} 45... Ke6 {[%clk
0:00:03.7]} 46. Bf4 {[%clk 0:00:03.2]} 46... Kd7 {[%clk 0:00:04.2]} 47. Bd5
{[%clk 0:00:03.1]} 47... Rf6 {[%clk 0:00:02.5]} 48. Kd4 {[%clk 0:00:02.9]} 48...
Rg6 {[%clk 0:00:02]} 49. Ke5 {[%clk 0:00:02.6]} 49... a5 {[%clk 0:00:02.2]} 50.
bxa5 {[%clk 0:00:02.3]} 50... Ra6 {[%clk 0:00:02.9]} 51. Kf5 {[%clk 0:00:01.8]}
51... Rxa5 {[%clk 0:00:03.1]} 52. Be6+ {[%clk 0:00:02.4]} 52... Kc6 {[%clk
0:00:03]} 53. Kg5 {[%clk 0:00:02.1]} 53... b4+ {[%clk 0:00:03.6]} 54. Kxh4
{[%clk 0:00:02.6]} 54... Rb5 {[%clk 0:00:02.9]} 55. Bb3 {[%clk 0:00:02.1]} 55...
Rc5 {[%clk 0:00:02.8]} 56. Ba4+ {[%clk 0:00:01.8]} 56... Kd5 {[%clk 0:00:01.9]}
57. h3 {[%clk 0:00:01.7]} 57... gxh3 {[%clk 0:00:01.4]} 58. Kxh3 {[%clk
0:00:01.9]} 58... Rc3 {[%clk 0:00:01.8]} 59. Bg5 {[%clk 0:00:00.4]} 59... Ra3
{[%clk 0:00:02]} 60. Bb5 {[%clk 0:00:00.2]} 60... b3 {[%clk 0:00:02.4]} 61. Bf6
{[%clk 0:00:00.8]} 61... Ra5 {[%clk 0:00:01.7]} 62. Be8 {[%clk 0:00:00.9]} 62...
Ra2 {[%clk 0:00:02.2]} 63. Bf7+ {[%clk 0:00:01.5]} 63... Kd6 {[%clk 0:00:02.9]}
64. Bxb3 {[%clk 0:00:02.1]} 64... Rxf2 {[%clk 0:00:03.2]} 65. Kg3 {[%clk
0:00:02.2]} 65... Rg2+ {[%clk 0:00:03.5]} 66. Kf4 {[%clk 0:00:02.2]} 66... Rf2
{[%clk 0:00:02.8]} 67. Be5+ {[%clk 0:00:03.1]} 67... Ke7 {[%clk 0:00:02.4]} 68.
Kg3 {[%clk 0:00:03.6]} 68... Rf1 {[%clk 0:00:02.8]} 69. Bd4 {[%clk 0:00:03.6]}
69... Bh1 {[%clk 0:00:02.7]} 70. Bd5 {[%clk 0:00:03.1]} 70... Rb1 {[%clk
0:00:03.2]} 71. Bc4 {[%clk 0:00:03.3]} 71... Rc1 {[%clk 0:00:03]} 72. Bd5 {[%clk
0:00:03.8]} 72... Kd6 {[%clk 0:00:03.2]} 73. Bg8 {[%clk 0:00:03.5]} 73... Rf1
{[%clk 0:00:03.5]} 74. Bh7 {[%clk 0:00:03.3]} 74... Rg1+ {[%clk 0:00:03.7]} 75.
Kf4 {[%clk 0:00:03.6]} 75... Rf1+ {[%clk 0:00:04.2]} 76. Kg3 {[%clk 0:00:04.2]}
76... Bf3 {[%clk 0:00:04.8]} 77. Kf4 {[%clk 0:00:04.3]} 77... Kd5 {[%clk
0:00:04.6]} 78. Bg8+ {[%clk 0:00:04.1]} 78... Kd6 {[%clk 0:00:04.7]} 79. Bh7
{[%clk 0:00:04.8]} 79... Bd1+ {[%clk 0:00:04.7]} 80. Kg3 {[%clk 0:00:04.3]}
80... Bc2 {[%clk 0:00:05.3]} 81. Kh4 {[%clk 0:00:03]} 81... Rh1+ {[%clk
0:00:05.4]} 82. Kg5 {[%clk 0:00:03.7]} 82... Rxh7 {[%clk 0:00:06]} 83. Kf4
{[%clk 0:00:04.4]} 83... Rd7 {[%clk 0:00:06.6]} 84. Be5+ {[%clk 0:00:04.7]}
84... Kd5 {[%clk 0:00:07.5]} 85. Bd4 {[%clk 0:00:05.5]} 85... Bd3 {[%clk
0:00:08.4]} 86. Kf5 {[%clk 0:00:05.9]} 86... Rb7 {[%clk 0:00:09.2]} 87. Kf6
{[%clk 0:00:06.5]} 87... Rb3 {[%clk 0:00:10.1]} 88. Kf5 {[%clk 0:00:07.3]} 88...
Kc4 {[%clk 0:00:11]} 89. Kf6 {[%clk 0:00:07.8]} 89... Rb1 {[%clk 0:00:11.9]} 90.
Ke5 {[%clk 0:00:08.4]} 90... Rf1 {[%clk 0:00:12.7]} 91. Ke6 {[%clk 0:00:08.7]}
91... Kb3 {[%clk 0:00:13.6]} 92. Ke5 {[%clk 0:00:09.3]} 92... Kc2 {[%clk
0:00:14.5]} 93. Kd5 {[%clk 0:00:10]} 93... Kd1 {[%clk 0:00:15.4]} 94. Kc5 {[%clk
0:00:09.9]} 94... Ke2 {[%clk 0:00:16.3]} 95. Kd5 {[%clk 0:00:10.4]} 95... Rf3
{[%clk 0:00:16.5]} 96. Kc5 {[%clk 0:00:10.8]} 96... Rxe3 {[%clk 0:00:17]} 97.
Bxe3 {[%clk 0:00:11.7]} 97... Kxe3 {[%clk 0:00:17.7]} 98. Kb4 {[%clk 0:00:12.5]}
98... Kd2 {[%clk 0:00:18.5]} 0-1

[Event "Late-Titled-Tuesday-Blitz-May-14-2024"]
[Site "Chess.com"]
[Date "2024.05.14"]
[Round "4"]
[White "dennisodessa"]
[Black "campochess"]
[Result "1/2-1/2"]
[WhiteElo "2453"]
[BlackElo "2114"]
[TimeControl "180+1"]
[EndTime "14:41:19 PDT"]
[Termination "Game drawn by stalemate"]

1. d4 {[%clk 0:02:59.4]} 1... Nf6 {[%clk 0:02:58.6]} 2. c4 {[%clk 0:02:58.8]}
2... g6 {[%clk 0:02:57.9]} 3. Nc3 {[%clk 0:02:58.7]} 3... d5 {[%clk 0:02:57.8]}
4. Bg5 {[%clk 0:02:58.3]} 4... Ne4 {[%clk 0:02:57.3]} 5. Nxe4 {[%clk 0:02:58.7]}
5... dxe4 {[%clk 0:02:56.1]} 6. Qd2 {[%clk 0:02:59.6]} 6... h6 {[%clk
0:02:53.3]} 7. Bh4 {[%clk 0:02:59]} 7... Bg7 {[%clk 0:02:53.2]} 8. e3 {[%clk
0:02:58.3]} 8... c5 {[%clk 0:02:53.1]} 9. d5 {[%clk 0:02:58.2]} 9... Nd7 {[%clk
0:02:48.9]} 10. Ne2 {[%clk 0:02:57.4]} 10... Nf6 {[%clk 0:02:48.7]} 11. Nc3
{[%clk 0:02:56.7]} 11... O-O {[%clk 0:02:47]} 12. Bxf6 {[%clk 0:02:45.7]} 12...
exf6 {[%clk 0:02:39]} 13. Nxe4 {[%clk 0:02:46.6]} 13... Qb6 {[%clk 0:02:38.2]}
14. Bd3 {[%clk 0:02:45.7]} 14... Bf5 {[%clk 0:02:35.9]} 15. Rb1 {[%clk
0:02:40.5]} 15... Rfe8 {[%clk 0:02:33]} 16. Nc3 {[%clk 0:02:40.1]} 16... Bxd3
{[%clk 0:02:32.8]} 17. Qxd3 {[%clk 0:02:41]} 17... f5 {[%clk 0:02:32.4]} 18. O-O
{[%clk 0:02:41]} 18... Rad8 {[%clk 0:02:27.3]} 19. Rfc1 {[%clk 0:02:16.5]} 19...
Qf6 {[%clk 0:02:25.9]} 20. Nb5 {[%clk 0:01:56.3]} 20... a6 {[%clk 0:02:21.1]}
21. Nc3 {[%clk 0:01:56.5]} 21... Qh4 {[%clk 0:02:20.1]} 22. b4 {[%clk
0:01:52.3]} 22... b6 {[%clk 0:02:18.5]} 23. bxc5 {[%clk 0:01:51.5]} 23... bxc5
{[%clk 0:02:18.6]} 24. Na4 {[%clk 0:01:51.6]} 24... Be5 {[%clk 0:02:17.3]} 25.
g3 {[%clk 0:01:50.6]} 25... Qe7 {[%clk 0:02:10.5]} 26. Rb6 {[%clk 0:01:49.5]}
26... Qc7 {[%clk 0:01:51]} 27. Qa3 {[%clk 0:01:39.3]} 27... f4 {[%clk
0:01:37.4]} 28. gxf4 {[%clk 0:01:34.3]} 28... Bd6 {[%clk 0:01:36.7]} 29. Qd3
{[%clk 0:01:21.9]} 29... Qe7 {[%clk 0:01:34.1]} 30. Kh1 {[%clk 0:01:14.8]} 30...
Qh4 {[%clk 0:01:32.8]} 31. Rb2 {[%clk 0:01:09.2]} 31... Qh3 {[%clk 0:01:24.6]}
32. Qf1 {[%clk 0:01:07.5]} 32... Qf5 {[%clk 0:01:24.4]} 33. Nc3 {[%clk
0:01:02.3]} 33... Rb8 {[%clk 0:01:17.1]} 34. Rxb8 {[%clk 0:00:57.6]} 34... Rxb8
{[%clk 0:01:15.6]} 35. Rb1 {[%clk 0:00:58.5]} 35... Re8 {[%clk 0:01:06.7]} 36.
Rb6 {[%clk 0:00:52.5]} 36... Bf8 {[%clk 0:01:01.8]} 37. Qb1 {[%clk 0:00:40.8]}
37... Qg4 {[%clk 0:00:58.7]} 38. Qd1 {[%clk 0:00:39.4]} 38... Qh4 {[%clk
0:00:53]} 39. Qf3 {[%clk 0:00:36.6]} 39... Bg7 {[%clk 0:00:52.4]} 40. Ne4 {[%clk
0:00:36.2]} 40... Qe7 {[%clk 0:00:49.7]} 41. Nd6 {[%clk 0:00:27]} 41... Rd8
{[%clk 0:00:47.1]} 42. Nb7 {[%clk 0:00:27]} 42... Rb8 {[%clk 0:00:44.9]} 43. d6
{[%clk 0:00:27.2]} 43... Qf6 {[%clk 0:00:45]} 44. Rxa6 {[%clk 0:00:18]} 44...
Qc3 {[%clk 0:00:32.4]} 45. d7 {[%clk 0:00:15.9]} 45... Qxc4 {[%clk 0:00:32.1]}
46. Kg2 {[%clk 0:00:03.9]} 46... Qxa6 {[%clk 0:00:31.4]} 47. d8=Q+ {[%clk
0:00:03.9]} 47... Rxd8 {[%clk 0:00:30.3]} 48. Nxd8 {[%clk 0:00:04.8]} 48... Qxa2
{[%clk 0:00:30]} 49. Qc6 {[%clk 0:00:02.4]} 49... Qc4 {[%clk 0:00:25.7]} 50.
Qe8+ {[%clk 0:00:02.3]} 50... Bf8 {[%clk 0:00:22.4]} 51. Qc6 {[%clk 0:00:02.4]}
51... Qd3 {[%clk 0:00:19]} 52. Nb7 {[%clk 0:00:01.4]} 52... c4 {[%clk
0:00:18.9]} 53. Nc5 {[%clk 0:00:01.8]} 53... Qd6 {[%clk 0:00:18.5]} 54. Qxd6
{[%clk 0:00:01.6]} 54... Bxd6 {[%clk 0:00:18.3]} 55. Ne4 {[%clk 0:00:02.5]}
55... Bb4 {[%clk 0:00:17.7]} 56. Kf1 {[%clk 0:00:03.1]} 56... f5 {[%clk
0:00:17.7]} 57. Ng3 {[%clk 0:00:02.8]} 57... c3 {[%clk 0:00:15.7]} 58. Ne2
{[%clk 0:00:02.2]} 58... c2 {[%clk 0:00:15.4]} 59. Nc1 {[%clk 0:00:03]} 59...
Bd2 {[%clk 0:00:15]} 60. Nd3 {[%clk 0:00:03.8]} 60... c1=Q+ {[%clk 0:00:13.5]}
61. Nxc1 {[%clk 0:00:04.6]} 61... Bxc1 {[%clk 0:00:13.4]} 62. Ke2 {[%clk
0:00:05.5]} 62... Kf7 {[%clk 0:00:12.1]} 63. f3 {[%clk 0:00:06.4]} 63... Ke6
{[%clk 0:00:12]} 64. Kd3 {[%clk 0:00:06.8]} 64... Kd5 {[%clk 0:00:11.6]} 65. h3
{[%clk 0:00:07.7]} 65... Ba3 {[%clk 0:00:09.5]} 66. e4+ {[%clk 0:00:08.6]} 66...
fxe4+ {[%clk 0:00:09.3]} 67. fxe4+ {[%clk 0:00:09.5]} 67... Kc5 {[%clk
0:00:08.9]} 68. Ke3 {[%clk 0:00:08.9]} 68... Bc1+ {[%clk 0:00:08.4]} 69. Kf3
{[%clk 0:00:09.3]} 69... Kd4 {[%clk 0:00:08.5]} 70. f5 {[%clk 0:00:09.6]} 70...
gxf5 {[%clk 0:00:07.5]} 71. exf5 {[%clk 0:00:10.4]} 71... Ke5 {[%clk 0:00:07.7]}
72. Kg4 {[%clk 0:00:10.6]} 72... Kf6 {[%clk 0:00:08.1]} 73. Kf3 {[%clk
0:00:07.5]} 73... Kxf5 {[%clk 0:00:07.9]} 74. h4 {[%clk 0:00:08.4]} 74... Kg6
{[%clk 0:00:05.5]} 75. h5+ {[%clk 0:00:09.3]} 75... Kxh5 {[%clk 0:00:05.4]} 76.
Kg2 {[%clk 0:00:10]} 76... Kg4 {[%clk 0:00:05.3]} 77. Kh1 {[%clk 0:00:10.9]}
77... Kh3 {[%clk 0:00:05.4]} 78. Kg1 {[%clk 0:00:11.3]} 78... h5 {[%clk
0:00:05.4]} 79. Kh1 {[%clk 0:00:12.2]} 79... h4 {[%clk 0:00:05.7]} 80. Kg1
{[%clk 0:00:13.1]} 80... Kg3 {[%clk 0:00:05.6]} 81. Kh1 {[%clk 0:00:14]} 81...
h3 {[%clk 0:00:05.8]} 82. Kg1 {[%clk 0:00:14.9]} 82... h2+ {[%clk 0:00:05.8]}
83. Kh1 {[%clk 0:00:15.8]} 83... Kh3 {[%clk 0:00:06.1]} 1/2-1/2